fUSD/lending_fUSD_20240529
["ID","MTS","AMOUNT","RATE_DAILY","PERIOD"]
[328152739,1716947925516,155.27077078,0.00013973,2]
[328152749,1716948332787,158.61,0.00013973,2]
[328152944,1716948632565,-644.39292773,0.0001711,2]
[328152945,1716948632579,-406.69756989,0.00017111,2]
[328152946,1716948632590,-155.0,0.00017112,2]
[328152947,1716948632600,-644.63511222,0.00017112,2]
[328152948,1716948632613,-420.84110183,0.00017112,2]
[328152949,1716948632624,-300.0,0.00017154,2]
[328152950,1716948632634,-150.0,0.00017251,2]
[328152951,1716948632644,-150.0,0.00017251,2]
[328152952,1716948632654,-1008.8887636,0.00017252,2]
[328152953,1716948632664,-28246.76091724,0.00017252,2]
[328152954,1716948632685,-7169.10094829,0.00017252,2]
[328152955,1716948632699,-4106.85911332,0.00017253,2]
[328152956,1716948632710,-834.37,0.00017534,2]
[328152957,1716948632721,-499.99,0.00017808,2]
[328152958,1716948632732,-4388.77,0.00017808,2]
[328152959,1716948632744,-5192.79147835,0.0002,2]
[328152960,1716948632757,-505.0,0.000219,2]
[328152961,1716948632769,-165.02,0.00021918,2]
[328152962,1716948632780,-505.08725337,0.000247,2]
[328152963,1716948632791,-6780.17431579,0.000249,2]
[328152964,1716948632802,-811.66085324,0.0002739,2]
[328152965,1716948632813,-290.4,0.00027697,2]
[328152966,1716948632824,-551.74795471,0.00028,2]
[328152967,1716948632834,-211.0,0.000289,5]
[328152968,1716948632846,-907.061982,0.000295,2]
[328152969,1716948632857,-2010.731989,0.000295,2]
[328152970,1716948632867,-637.88004893,0.00029507,2]
[328152971,1716948632881,-19311.85995107,0.00029507,2]
[328152972,1716948632892,-1360.592974,0.000298,2]
[328152974,1716948632902,-3016.097984,0.000298,2]
[328152977,1716948632913,-1966.36,0.00029806,2]
[328152980,1716948632924,-290.4,0.00029961,2]
[328152983,1716948632935,-3137.28,0.00029991,2]
[328152986,1716948632946,-1814.123965,0.0003,2]
[328152990,1716948632956,-2976.19401143,0.0003,2]
[328152993,1716948632970,-597.34227907,0.0003,2]
[328153002,1716948633216,-251.61999996,0.0003,2]
[328153003,1716948633228,-196.30768854,0.0003,2]
[328153004,1716948633238,-2136.02210101,0.0003,2]
[328153005,1716948633249,-713.07366266,0.0003,2]
[328153006,1716948633263,-893.59727248,0.0003,2]
[328153007,1716948633274,-1157.61272561,0.0003,2]
[328153008,1716948633285,-796.58171875,0.0003,2]
[328153009,1716948633294,-280.87,0.00030003,2]
[328153010,1716948633303,-250.0,0.0003002,2]
[328153011,1716948633312,-250.0,0.00030103,2]
[328153012,1716948633322,-866.81536701,0.00030155,2]
[328153013,1716948633333,-133.18463299,0.00030155,2]
[328153014,1716948633342,-162.7,0.00030169,2]
[328153015,1716948633351,-150.0,0.00030177,2]
[328153016,1716948633360,-3406.15,0.00030184,2]
[328153017,1716948633370,-2192.68862733,0.000302,2]
[328153018,1716948633382,-74.96632967,0.000302,2]
[328153019,1716948633390,-3935.85488528,0.000302,2]
[328153020,1716948633402,-580.86539022,0.000302,2]
[328153021,1716948633417,-510.1096985,0.000302,2]
[328153022,1716948633426,-299.62363904,0.00030235,2]
[328153023,1716948633437,-672.3424,0.00030235,2]
[328153024,1716948633448,-180.20396096,0.00030235,2]
[328153025,1716948633457,-250.0,0.00030235,2]
[328153026,1716948633467,-177.09,0.00030237,2]
[328153027,1716948633476,-211.58894,0.00030285,2]
[328153028,1716948633486,-2000.0,0.0003029,2]
[328153029,1716948633500,-1634.65862788,0.00030437,2]
[328153030,1716948633517,-856.05137212,0.00030437,2]
[328153031,1716948633526,-201.06,0.00030468,120]
[328153032,1716948633537,-727.09802428,0.000305,2]
[328153033,1716948633547,-2447.61891572,0.000305,2]
[328153034,1716948633556,-7037.561964,0.000305,2]
[328153035,1716948633565,-603.41627433,0.00030586,2]
[328153036,1716948633577,-1402.0,0.000306,4]
[328153037,1716948633586,-486.0,0.000306,4]
[328153038,1716948633595,-169.17,0.00030686,2]
[328153039,1716948633603,-162.7,0.00030693,2]
[328153040,1716948633612,-250.0,0.00030725,2]
[328153041,1716948633621,-3628.247931,0.000308,2]
[328153042,1716948633631,-8042.927959,0.000308,2]
[328153043,1716948633640,-481.29459915,0.00030905,10]
[328153044,1716948633649,-365.44593789,0.00031005,10]
[328153045,1716948633659,-1168.49738132,0.00031102,4]
[328153046,1716948633672,-4922.70982682,0.00031105,30]
[328153047,1716948633682,-162.7,0.00031217,2]
[328153048,1716948633691,-170.69,0.00031265,2]
[328153049,1716948633700,-350.0,0.00031273,2]
[328153050,1716948633710,-481.29459914,0.00031404,10]
[328153051,1716948633719,-365.44593781,0.00031493,10]
[328153052,1716948633728,-162.7,0.00031741,2]
[328153053,1716948633737,-211.58894,0.00031799,2]
[328153054,1716948633747,-450.0,0.00031821,2]
[328153055,1716948633760,-481.29459914,0.00031904,10]
[328153056,1716948633769,-204.52341839,0.0003195,30]
[328153057,1716948633778,-365.44593781,0.00031982,10]
[328153058,1716948633788,-290.4,0.00032225,2]
[328153059,1716948633798,-550.0,0.00032369,2]
[328153060,1716948633807,-151.0,0.00032399,2]
[328153061,1716948633816,-481.29459914,0.00032403,10]
[328153062,1716948633826,-365.44593781,0.0003247,10]
[328153063,1716948633835,-1966.36,0.00032546,2]
[328153064,1716948633845,-180.0,0.00032708,2]
[328153065,1716948633854,-293.015,0.00032889,2]
[328153066,1716948633864,-5212.77,0.00032889,2]
[328153067,1716948633873,-5840.559,0.00032889,2]
[328153068,1716948633882,-1485.623,0.00032889,2]
[328153069,1716948633892,-194.58,0.00032889,2]
[328153070,1716948633901,-4412.15952254,0.000329,2]
[328153071,1716948633913,-1173.84047746,0.000329,2]
[328153072,1716948633922,-3753.0,0.000329,2]
[328153073,1716948633931,-5774.62794821,0.000329,2]
[328153074,1716948633940,-750.0,0.000329,2]
[328153075,1716948633949,-481.29459914,0.00032903,10]
[328153076,1716948633959,-650.0,0.00032917,2]
[328153077,1716948633968,-365.44593781,0.00032958,10]
[328153078,1716948633977,-6402.51699403,0.00033,8]
[328153079,1716948633988,-3400.39942654,0.00033,8]
[328153082,1716948638582,-1070.58,0.00032889,2]
[328153085,1716948638592,-5258.17319065,0.00033,8]
[328153088,1716948638603,-1127.17289275,0.00033,8]
[328153090,1716948638616,-2333.73749603,0.00033,8]
[328153092,1716948638625,-481.29459914,0.00033402,10]
[328153094,1716948638635,-2021.07346093,0.00033438,2]
[328153095,1716948638643,-365.44593781,0.00033447,10]
[328153096,1716948638653,-601.55450968,0.00033465,2]
[328153097,1716948638662,-819.11844599,0.000335,2]
[328153098,1716948638673,-177.74155401,0.000335,2]
[328153099,1716948638682,-150.0,0.00033581,2]
[328153100,1716948638691,-1226.21279237,0.00033581,120]
[328153101,1716948638700,-308.46904962,0.00033902,10]
[328153102,1716948638712,-172.82554952,0.00033902,10]
[328153103,1716948638721,-247.76945048,0.00033925,2]
[328153104,1716948638732,-752.23054952,0.00033925,2]
[328153105,1716948638741,-365.44593781,0.00033935,10]
[328153106,1716948638751,-224.66,0.00034274,120]
[328153107,1716948638762,-180.63741552,0.00034401,10]
[328153108,1716948638773,-300.65718362,0.00034401,10]
[328153109,1716948638782,-365.44593781,0.00034423,10]
[328153110,1716948638791,-611.0,0.00034435,2]
[328153111,1716948638801,-494.0,0.00034435,2]
[328153112,1716948638809,-164.82,0.00034475,2]
[328153113,1716948638819,-290.4,0.00034489,2]
[328153114,1716948638828,-931.37837739,0.00034492,2]
[328153115,1716948638837,-871.25,0.00034548,2]
[328153116,1716948638847,-550.25,0.00034548,2]
[328153117,1716948638855,-416.3,0.00034548,2]
[328153118,1716948638865,-871.25,0.00034548,2]
[328153119,1716948638874,-416.3,0.00034548,2]
[328153120,1716948638883,-871.25,0.00034548,2]
[328153121,1716948638893,-416.3,0.00034548,2]
[328153122,1716948638902,-871.25,0.00034548,2]
[328153124,1716948638911,-871.25,0.00034548,2]
[328153126,1716948638920,-416.3,0.00034548,2]
[328153128,1716948638929,-2957.05941,0.0003465,2]
[328153129,1716948638938,-421.53,0.00034685,2]
[328153131,1716948638948,-150.0,0.00034685,2]
[328153133,1716948638957,-157.98,0.00034685,2]
[328153135,1716948638966,-160.18,0.00034685,2]
[328153137,1716948638975,-153.62,0.00034685,2]
[328153139,1716948638984,-150.0,0.00034685,2]
[328153141,1716948638993,-256.54,0.00034685,2]
[328153144,1716948639003,-369.54,0.00034685,2]
[328153145,1716948639015,-150.0,0.00034685,2]
[328153147,1716948639025,-352.49,0.00034685,2]
[328153149,1716948639035,-150.0,0.00034685,2]
[328153151,1716948639045,-421.53,0.00034685,2]
[328153152,1716948639055,-163.78,0.00034685,2]
[328153153,1716948639064,-150.0,0.00034685,2]
[328153154,1716948639074,-150.0,0.00034685,2]
[328153155,1716948639086,-421.53,0.00034685,2]
[328153156,1716948639096,-150.0,0.00034685,2]
[328153157,1716948639105,-150.0,0.00034685,2]
[328153158,1716948639115,-352.49,0.00034685,2]
[328153159,1716948639125,-150.0,0.00034685,2]
[328153160,1716948639134,-150.0,0.00034685,2]
[328153161,1716948639144,-150.0,0.00034685,2]
[328153162,1716948639154,-163.78,0.00034685,2]
[328153163,1716948639163,-421.53,0.00034685,2]
[328153164,1716948639173,-163.78,0.00034685,2]
[328153165,1716948639183,-150.0,0.00034685,2]
[328153166,1716948639194,-150.0,0.00034685,2]
[328153167,1716948639204,-150.0,0.00034685,2]
[328153168,1716948639213,-352.49,0.00034685,2]
[328153169,1716948639223,-150.0,0.00034685,2]
[328153170,1716948639232,-150.0,0.00034685,2]
[328153171,1716948639242,-150.0,0.00034685,2]
[328153172,1716948639252,-150.0,0.00034685,2]
[328153173,1716948639264,-421.53,0.00034685,2]
[328153174,1716948639274,-150.0,0.00034685,2]
[328153175,1716948639284,-352.49,0.00034685,2]
[328153176,1716948639293,-163.78,0.00034685,2]
[328153177,1716948639303,-150.0,0.00034685,2]
[328153178,1716948639312,-611.0,0.0003479,2]
[328153179,1716948639321,-494.0,0.0003479,2]
[328153180,1716948639331,-996.86,0.00034845,2]
[328153181,1716948639341,-1000.0,0.000349,2]
[328153182,1716948639350,-488.58689094,0.000349,7]
[328153183,1716948639359,-335.15653381,0.000349,2]
[328153184,1716948639370,-481.29459914,0.00034901,10]
[328153185,1716948639379,-365.44593781,0.00034912,10]
[328153186,1716948639389,-488.58689087,0.00034936,7]
[328153187,1716948639398,-277.91078319,0.00034959,4]
[328153188,1716948639408,-264.01192801,0.00034959,4]
[328153189,1716948639417,-493.00923772,0.0003496,4]
[328153190,1716948639427,-308.96717256,0.0003496,4]
[328153191,1716948639436,-205.68202096,0.0003496,4]
[328153192,1716948639446,-202.14956067,0.0003496,8]
[328153193,1716948639455,-381.08734309,0.0003496,8]
[328153194,1716948639464,-199.76180576,0.0003496,8]
[328153195,1716948639473,-469.15883292,0.0003496,8]
[328153196,1716948639483,-405.71537652,0.0003496,8]
[328153197,1716948639495,-500.0,0.0003496,8]
[328153198,1716948639504,-219.31882262,0.0003496,8]
[328153199,1716948639515,-394.46883361,0.0003496,8]
[328153200,1716948639524,-252.866618,0.0003496,8]
[328153201,1716948639534,-356.47998151,0.0003496,8]
[328153202,1716948639543,-165.59214282,0.0003496,8]
[328153203,1716948639553,-204.19647017,0.0003496,8]
[328153204,1716948639562,-158.54716137,0.0003496,8]
[328153205,1716948639572,-307.42829326,0.0003496,8]
[328153206,1716948639583,-234.81604489,0.0003496,8]
[328153207,1716948639593,-161.61302279,0.0003496,8]
[328153208,1716948639603,-188.42180165,0.0003496,8]
[328153209,1716948639612,-158.06735048,0.0003496,8]
[328153210,1716948639622,-538.8399809,0.0003496,8]
[328153211,1716948639631,-500.0,0.0003496,8]
[328153212,1716948639641,-299.0579542,0.0003496,8]
[328153213,1716948639651,-177.61785764,0.0003496,8]
[328153214,1716948639661,-183.98171355,0.0003496,8]
[328153215,1716948639670,-500.0,0.0003496,8]
[328153216,1716948639679,-245.01040191,0.0003496,8]
[328153217,1716948639690,-174.09907443,0.0003496,8]
[328153218,1716948639699,-500.0,0.0003496,8]
[328153219,1716948639709,-500.0,0.0003496,8]
[328153220,1716948639718,-500.0,0.0003496,8]
[328153221,1716948639728,-77258.95437661,0.0003496,2]
[328153222,1716948639737,-223.38912817,0.0003496,8]
[328153223,1716948639747,-986.545,0.00034961,2]
[328153224,1716948639756,-157.228,0.00034961,2]
[328153225,1716948639766,-445.0,0.00034961,2]
[328153226,1716948639775,-2415.4,0.00034961,2]
[328153227,1716948639785,-165.188,0.00034961,2]
[328153228,1716948639794,-819.27,0.00034961,2]
[328153229,1716948639803,-154.685,0.00034961,2]
[328153230,1716948639813,-1663.952,0.00034961,2]
[328153231,1716948639822,-1305.0,0.00034961,2]
[328153232,1716948639831,-220.0,0.00034961,2]
[328153233,1716948639841,-3195.094,0.00034961,2]
[328153234,1716948639851,-725.31083388,0.00034968,2]
[328153235,1716948639861,-121715.79927718,0.00034968,7]
[328153236,1716948639874,-841.415,0.00034968,7]
[328153237,1716948639885,-438.29,0.00034968,7]
[328153238,1716948639896,-5697.51723937,0.00034968,7]
[328153239,1716948639908,-107317.09136821,0.00034968,7]
[328153240,1716948639918,-488.58689087,0.00034971,7]
[328153241,1716948639928,-20000.0,0.00034999,2]
[328153242,1716948639937,-503.0342993,0.00034999,2]
[328153243,1716948639946,-222.85890082,0.00034999,8]
[328153244,1716948639955,-500.0,0.00034999,8]
[328153245,1716948639965,-505.45502534,0.00034999,8]
[328153246,1716948639974,-500.0,0.00034999,2]
[328153247,1716948639984,-1335.91,0.00034999,8]
[328153248,1716948639993,-170.89816285,0.00034999,8]
[328153249,1716948640003,-500.0,0.00034999,8]
[328153250,1716948640014,-1759.2422729,0.00035,6]
[328153251,1716948640024,-200.0,0.00035,30]
[328153252,1716948640034,-259.28332601,0.00035,4]
[328153253,1716948640044,-275.23147539,0.00035,5]
[328153254,1716948640054,-553.15416957,0.00035,2]
[328153255,1716948640064,-155.0,0.00035,2]
[328153256,1716948640074,-5829.21570222,0.00035,2]
[328153257,1716948640086,-7098.9,0.00035,2]
[328153258,1716948640097,-8602.67733,0.00035,2]
[328153259,1716948641883,-4669.54794301,0.00035,2]
[328153260,1716948641895,-1383.8566216,0.00035,2]
[328153261,1716948642563,-22829.57357647,0.00035,2]
[328153262,1716948642575,-3269.93236863,0.00035,2]
[328153263,1716948642585,-2025.5958,0.00035,2]
[328153264,1716948642595,-173.01310102,0.00035,2]
[328153265,1716948642604,-488.58689087,0.00035007,7]
[328153266,1716948642613,-173.052911,0.00035038,48]
[328153267,1716948642623,-488.58689087,0.00035043,7]
[328153268,1716948642632,-161.052911,0.00035048,46]
[328153269,1716948642642,-173.052911,0.00035058,48]
[328153270,1716948642651,-161.052911,0.00035068,46]
[328153271,1716948642660,-173.052911,0.00035078,48]
[328153272,1716948642669,-488.58689087,0.00035079,7]
[328153273,1716948642678,-282.19,0.00035088,6]
[328153274,1716948642687,-161.052911,0.00035088,46]
[328153275,1716948642696,-173.052911,0.00035098,48]
[328153276,1716948642705,-172.72296756,0.00035098,7]
[328153277,1716948642714,-20550.33690036,0.00035098,7]
[328153278,1716948642723,-977.95157787,0.00035099,2]
[328153279,1716948642733,-40344.6745,0.000351,2]
[328153280,1716948642743,-426.5258,0.000351,2]
[328153281,1716948642752,-1456.8416,0.000351,2]
[328153282,1716948642761,-500.0,0.000351,2]
[328153283,1716948642771,-150.0,0.00035109,2]
[328153284,1716948642780,-150.48505331,0.0003511,2]
[328153285,1716948642790,-488.58689087,0.00035114,7]
[328153286,1716948642800,-20550.33690029,0.00035125,7]
[328153287,1716948642810,-611.0,0.00035145,2]
[328153288,1716948642819,-494.0,0.00035145,2]
[328153289,1716948642828,-169.15,0.00035145,4]
[328153290,1716948642838,-169.15,0.00035145,4]
[328153291,1716948642847,-169.15,0.00035145,4]
[328153292,1716948642857,-169.15,0.00035145,4]
[328153293,1716948642866,-169.15,0.00035145,4]
[328153294,1716948642875,-202.65583363,0.00035146,2]
[328153295,1716948642885,-488.58689087,0.0003515,7]
[328153296,1716948642894,-20550.33690029,0.00035153,7]
[328153297,1716948642903,-4630.18075532,0.00035166,4]
[328153299,1716948642913,-20550.33690029,0.0003518,7]
[328153300,1716948642922,-488.58689087,0.00035186,7]
[328153301,1716948642931,-175.61,0.00035187,2]
[328153302,1716948642940,-199.60973745,0.00035191,2]
[328153303,1716948642950,-522.54033427,0.00035192,2]
[328153304,1716948642960,-500.0,0.00035195,8]
[328153305,1716948642969,-500.0,0.00035195,8]
[328153306,1716948642979,-500.0,0.00035195,8]
[328153307,1716948642989,-456.67642595,0.00035195,8]
[328153308,1716948642998,-500.0,0.00035195,8]
[328153309,1716948643008,-282.4282,0.00035195,8]
[328153310,1716948643018,-2000.0,0.00035196,2]
[328153311,1716948643027,-2000.0,0.00035196,2]
[328153312,1716948643036,-2000.0,0.00035196,2]
[328153313,1716948643046,-2000.0,0.00035196,2]
[328153314,1716948643055,-2000.0,0.00035196,2]
[328153315,1716948643065,-20000.0,0.00035196,2]
[328153316,1716948643074,-20088.46643162,0.00035196,2]
[328153317,1716948643083,-500.0,0.00035196,8]
[328153318,1716948643092,-500.0,0.00035196,8]
[328153319,1716948643102,-500.0,0.00035196,8]
[328153320,1716948643112,-500.0,0.00035196,8]
[328153321,1716948643122,-500.0,0.00035196,8]
[328153322,1716948643131,-500.0,0.00035196,8]
[328153323,1716948643140,-500.0,0.00035196,8]
[328153324,1716948643149,-500.0,0.00035196,8]
[328153325,1716948643168,-500.0,0.00035196,2]
[328153326,1716948643179,-500.0,0.00035196,2]
[328153327,1716948643188,-500.0,0.00035196,2]
[328153328,1716948643198,-500.0,0.00035196,2]
[328153329,1716948643208,-500.0,0.00035196,2]
[328153330,1716948643217,-500.0,0.00035196,2]
[328153331,1716948643227,-500.0,0.00035196,2]
[328153332,1716948643236,-500.0,0.00035196,2]
[328153334,1716948643245,-316.45387958,0.00035196,7]
[328153336,1716948643255,-1335.91,0.00035196,8]
[328153337,1716948643265,-1335.91,0.00035196,8]
[328153338,1716948643275,-1335.91,0.00035196,8]
[328153339,1716948643285,-1335.91,0.00035196,8]
[328153340,1716948643294,-1335.91,0.00035196,8]
[328153341,1716948643303,-1335.91,0.00035196,8]
[328153342,1716948643313,-1335.91,0.00035196,8]
[328153343,1716948643323,-1335.91,0.00035196,8]
[328153344,1716948643332,-347.13348935,0.00035196,8]
[328153345,1716948643341,-639.04762594,0.00035196,8]
[328153346,1716948643351,-500.0,0.00035196,8]
[328153347,1716948643504,-500.0,0.00035196,8]
[328153348,1716948643540,-500.0,0.00035196,8]
[328153349,1716948643550,-500.0,0.00035196,8]
[328153350,1716948643559,-500.0,0.00035196,8]
[328153351,1716948643570,-500.0,0.00035196,8]
[328153352,1716948643579,-500.0,0.00035196,8]
[328153353,1716948643589,-500.0,0.00035196,8]
[328153354,1716948643599,-500.0,0.00035196,8]
[328153355,1716948643608,-500.0,0.00035196,8]
[328153356,1716948643618,-500.0,0.00035196,8]
[328153357,1716948643627,-500.0,0.00035196,8]
[328153358,1716948643636,-500.0,0.00035196,8]
[328153359,1716948643646,-500.0,0.00035196,8]
[328153360,1716948643655,-500.0,0.00035196,8]
[328153361,1716948643664,-500.0,0.00035196,8]
[328153362,1716948643674,-500.0,0.00035196,8]
[328153363,1716948643683,-500.0,0.00035196,8]
[328153364,1716948643693,-500.0,0.00035196,8]
[328153365,1716948643702,-559.29986928,0.00035196,8]
[328153366,1716948643712,-18178.81908996,0.00035197,11]
[328153367,1716948643721,-411.20813719,0.00035197,2]
[328153368,1716948643731,-1916949.86524367,0.00035197,2]
[328153369,1716948643740,-198.85352824,0.00035198,4]
[328153370,1716948643750,-197.795943,0.00035198,4]
[328153371,1716948643760,-1133.73858834,0.00035198,4]
[328153372,1716948643770,-3896.75366987,0.00035198,2]
[328153373,1716948643779,-10074.77590161,0.00035198,5]
[328153374,1716948643788,-6872.30457277,0.00035198,4]
[328153375,1716948643797,-6268.23989483,0.00035198,4]
[328153376,1716948643807,-224.59402102,0.00035198,4]
[328153377,1716948643817,-690.59225573,0.00035198,4]
[328153378,1716948643826,-159.77614267,0.00035198,4]
[328153379,1716948643836,-155.7769832,0.00035198,4]
[328153380,1716948643845,-10587.01601342,0.00035198,4]
[328153381,1716948643854,-155.35976788,0.00035198,4]
[328153382,1716948643864,-1274.42214525,0.00035198,120]
[328153383,1716948643873,-324.28136299,0.00035198,4]
[328153384,1716948643883,-3026.7356373,0.00035198,4]
[328153385,1716948643893,-155.33259008,0.00035198,4]
[328153386,1716948643902,-1786.90725673,0.00035198,4]
[328153387,1716948643912,-296.8036598,0.00035198,4]
[328153388,1716948643921,-304.99803085,0.00035198,4]
[328153389,1716948643931,-155.61051884,0.00035198,4]
[328153390,1716948643940,-155.29576596,0.00035198,4]
[328153391,1716948643950,-5553.42626926,0.00035198,2]
[328153392,1716948643959,-591.09058952,0.00035198,30]
[328153393,1716948643969,-7600.0,0.00035198,4]
[328153394,1716948643979,-249.76538605,0.00035198,4]
[328153395,1716948643988,-2000.0,0.00035199,2]
[328153396,1716948643998,-500.0,0.00035199,2]
[328153397,1716948644007,-20550.33690029,0.00035208,7]
[328153398,1716948644016,-500.0,0.00035215,10]
[328153399,1716948644026,-200.0,0.00035215,10]
[328153400,1716948644035,-488.58689087,0.00035221,7]
[328153401,1716948644045,-20550.33690029,0.00035235,7]
[328153402,1716948644055,-158.02257072,0.00035246,2]
[328153403,1716948644064,-1630.05128403,0.00035246,2]
[328153404,1716948644074,-152.17301277,0.00035247,2]
[328153405,1716948644083,-172.72296756,0.00035249,7]
[328153406,1716948644093,-488.58689087,0.00035257,7]
[328153407,1716948644103,-20550.33690029,0.00035263,7]
[328153408,1716948644114,-1966.36,0.00035285,2]
[328153409,1716948644123,-20550.33690029,0.0003529,7]
[328153410,1716948644133,-212.59718619,0.00035291,2]
[328153411,1716948644142,-488.58689087,0.00035293,7]
[328153412,1716948644152,-20550.33690029,0.00035318,7]
[328153413,1716948644161,-286.99565143,0.00035328,2]
[328153414,1716948644171,-488.58689087,0.00035329,7]
[328153415,1716948644180,-529.1248927,0.00035342,4]
[328153416,1716948644189,-500.0,0.00035342,2]
[328153417,1716948644200,-1000.0,0.00035342,2]
[328153418,1716948644209,-500.0,0.00035342,8]
[328153419,1716948644219,-500.0,0.00035342,2]
[328153420,1716948644228,-3328.87,0.00035342,8]
[328153421,1716948644237,-500.0,0.00035342,2]
[328153422,1716948644246,-500.0,0.00035342,2]
[328153423,1716948644257,-20550.33690029,0.00035345,8]
[328153424,1716948644267,-488.58689087,0.00035364,7]
[328153425,1716948644277,-362.0,0.00035366,5]
[328153426,1716948644286,-20550.33690029,0.00035373,8]
[328153427,1716948644295,-500.0,0.00035398,8]
[328153428,1716948644304,-500.0,0.00035398,2]
[328153429,1716948644315,-1335.91,0.00035398,8]
[328153430,1716948644324,-500.0,0.00035398,8]
[328153431,1716948644334,-500.0,0.00035399,2]
[328153432,1716948644344,-1003.9208569,0.00035399,2]
[328153433,1716948644353,-500.0,0.00035399,8]
[328153434,1716948644363,-502.09990741,0.00035399,2]
[328153435,1716948644371,-3328.87,0.00035399,8]
[328153436,1716948644380,-432.1440861,0.00035399,2]
[328153437,1716948644390,-605.73217319,0.00035399,2]
[328153438,1716948644399,-500.0,0.00035399,2]
[328153439,1716948644408,-151.0,0.00035399,7]
[328153440,1716948644417,-296.108652,0.00035399,7]
[328153441,1716948644428,-151.0,0.00035399,7]
[328153442,1716948644438,-151.0,0.00035399,7]
[328153443,1716948644447,-151.0,0.00035399,7]
[328153444,1716948644457,-3000.0,0.000354,36]
[328153445,1716948644466,-2403.55793051,0.000354,2]
[328153446,1716948644476,-734.60223445,0.000354,14]
[328153447,1716948644486,-1609.86486825,0.000354,4]
[328153448,1716948644502,-9277.79771159,0.000354,5]
[328153449,1716948644511,-500.0,0.000354,5]
[328153450,1716948644522,-970.53,0.000354,2]
[328153451,1716948644531,-200.0,0.000354,2]
[328153452,1716948644542,-172.72296756,0.000354,8]
[328153453,1716948644551,-20550.33690029,0.000354,8]
[328153454,1716948644561,-286.99565143,0.000354,2]
[328153455,1716948644571,-365.44593781,0.000354,10]
[328153456,1716948644581,-155.848829,0.000354,8]
[328153457,1716948644591,-481.29459914,0.000354,10]
[328153458,1716948644601,-488.58689087,0.000354,7]
[328153459,1716948644611,-2000.0,0.00035475,2]
[328153460,1716948644622,-500.0,0.00035475,8]
[328153461,1716948644632,-500.0,0.00035475,8]
[328153462,1716948644641,-500.0,0.00035475,2]
[328153463,1716948644651,-500.0,0.00035475,2]
[328153464,1716948644660,-1335.91,0.00035475,8]
[328153465,1716948644669,-1335.91,0.00035475,8]
[328153466,1716948644679,-500.0,0.00035475,8]
[328153467,1716948644688,-558.94685151,0.00035475,8]
[328153468,1716948644697,-500.0,0.00035475,8]
[328153469,1716948644706,-500.0,0.00035475,8]
[328153470,1716948644716,-155.156792,0.00035476,7]
[328153471,1716948644725,-3573.0237939,0.00035476,2]
[328153472,1716948644735,-3460.5455114,0.00035476,2]
[328153473,1716948644744,-3348.0672289,0.00035476,2]
[328153474,1716948644754,-3235.5889465,0.00035476,2]
[328153475,1716948644763,-3123.110664,0.00035476,2]
[328153476,1716948644772,-75801.3537783,0.00035476,2]
[328153477,1716948644781,-73686.3995567,0.00035476,2]
[328153478,1716948644791,-71571.4453351,0.00035476,2]
[328153479,1716948644800,-69456.4911134,0.00035476,2]
[328153480,1716948644809,-67341.5368918,0.00035476,2]
[328153481,1716948644818,-5260.4630258,0.00035476,2]
[328153482,1716948644827,-5113.6894138,0.00035476,2]
[328153483,1716948644836,-4966.9158019,0.00035476,2]
[328153484,1716948644845,-4820.1421899,0.00035476,2]
[328153485,1716948644855,-4673.368578,0.00035476,2]
[328153486,1716948644864,-1054.9297481,0.00035476,2]
[328153487,1716948644874,-1025.4958658,0.00035476,2]
[328153488,1716948644883,-996.0619835,0.00035476,2]
[328153489,1716948644893,-966.6281012,0.00035476,2]